[Event "DSAM Bad Wildungen 2024"]
[Site "Bad Wildungen"]
[Date "2024.08.03"]
[Round "5.32"]
[White "Dolidze, David"]
[Black "Kessler, Rene"]
[Result "1/2-1/2"]
[Annotator "NA"]
[ECO "B40"]
[WhiteElo "1720"]
[BlackElo "1714"]
[PlyCount "84"]
[EventDate "2024.07.31"]
[EventCountry "GER"]
[SourceTitle "playchess.com"]
[Source "ChessBase"]
[SourceQuality "1"]
[TimeControl "40/5400+30:900+30"]

1. e4 {[%emt 0:00:03]} c5 {[%emt 0:00:03]} 2. Nf3 {[%emt 0:00:09]} e6 {[%emt 0:00:10]} 3. c3 {[%emt 0:00:34]} d5 {[%emt 0:00:25]} 4. e5 {[%emt 0:00:12]} d4 {[%emt 0:08:10]} 5. Bd3 {[%emt 0:00:45]} Nc6 {[%emt 0:04:13]} 6. O-O {[%emt 0:00:15]} Qc7 {[%emt 0:01:30]} 7. Qe2 {[%emt 0:00:16]} Nge7 {[%emt 0:03:04]} 8. g3 {[%emt 0:00:27]} Ng6 {[%emt 0:01:45]} 9. Re1 {[%emt 0:00:07]} Bd7 {[%emt 0:07:05]} 10. h4 {[%emt 0:00:10]} c4 {[%emt 0:02:05]} 11. Bxg6 {[%emt 0:02:00]} hxg6 {[%emt 0:02:58]} 12. Qxc4 {[%emt 0:00:14]} dxc3 {[%emt 0:02:13]} 13. bxc3 {[%emt 0:04:16]} Be7 {[%emt 0:04:34]} 14. d4 {[%emt 0:00:15]} Qb6 {[%emt 0:05:22]} 15. Qb3 {[%emt 0:05:02]} Qc7 {[%emt 0:01:44]} 16. Ba3 {[%emt 0:06:37]} Na5 {[%emt 0:01:47]} 17. Qc2 {[%emt 0:00:15]} Bxa3 {[%emt 0:05:02]} 18. Nxa3 {[%emt 0:00:08]} Rc8 {[%emt 0:02:09]} 19. Rac1 {[%emt 0:06:58]} Bc6 {[%emt 0:04:09]} 20. Nd2 {[%emt 0:01:37]} g5 {[%emt 0:00:53]} 21. Ne4 {[%emt 0:16:36]} gxh4 {[%emt 0:05:12]} 22. Nd6+ {[%emt 0:04:45]} Kd7 {[%emt 0:01:08]} 23. g4 {[%emt 0:01:57]} h3 {[%emt 0:03:09]} 24. Kh2 {[%emt 0:00:34]} Qd8 {[%emt 0:10:48]} 25. Re3 {[%emt 0:05:09]} Qg5 {[%emt 0:06:16]} 26. Nxc8 {[%emt 0:02:03]} Qf4+ {[%emt 0:00:28]} 27. Rg3 {[%emt 0:00:19]} Be4 {[%emt 0:00:38]} 28. Qb2 {[%emt 0:04:50]} Rxc8 {[%emt 0:03:04]} 29. c4 {[%emt 0:04:43]} b6 {[%emt 0:02:58]} 30. Rd1 {[%emt 0:03:57]} Nxc4 {[%emt 0:02:07]} 31. Nxc4 {[%emt 0:00:18]} Rxc4 {[%emt 0:00:31]} 32. Qd2 {[%emt 0:00:52]} Qxd2 {[%emt 0:02:30]} 33. Rxd2 {[%emt 0:00:06]} Bg2 {[%emt 0:01:10]} 34. Rgd3 {[%emt 0:11:11]} Be4 {[%emt 0:00:55]} 35. Rxh3 {[%emt 0:00:37]} Rc1 {[%emt 0:02:07]} 36. f3 {[%emt 0:03:24]} Bd5 {[%emt 0:00:51]} 37. Kg3 {[%emt 0:01:53]} g5 {[%emt 0:00:45]} 38. Rhh2 {[%emt 0:02:14]} Rc3 {[%emt 0:01:26]} 39. Rhf2 {[%emt 0:01:06]} b5 {[%emt 0:00:42]} 40. Rc2 {[%emt 0:00:25]} Rd3 {[%emt 0:00:36]} 41. Rcd2 {[%emt 0:15:23]} Rc3 {[%emt 0:15:13]} 42. Rc2 {[%emt 0:01:52]} Rd3 {[%emt 0:00:39]} 1/2-1/2

[Event "DSAM Bad Wildungen 2024"]
[Site "Bad Wildungen"]
[Date "2024.08.03"]
[Round "5.33"]
[White "Loesche, Marian"]
[Black "Schlegel, Jonas"]
[Result "1-0"]
[Annotator "NA"]
[ECO "E18"]
[WhiteElo "1763"]
[BlackElo "1710"]
[PlyCount "124"]
[EventDate "2024.07.31"]
[EventCountry "GER"]
[SourceTitle "playchess.com"]
[Source "ChessBase"]
[SourceQuality "1"]
[TimeControl "40/5400+30:900+30"]

1. d4 {[%emt 0:00:06]} Nf6 {[%emt 0:00:11]} 2. c4 {[%emt 0:00:06]} e6 {[%emt 0:00:12]} 3. Nf3 {[%emt 0:00:08]} d5 {[%emt 0:00:10]} 4. Nc3 {[%emt 0:01:05]} Be7 {[%emt 0:03:48]} 5. g3 {[%emt 0:00:22]} b6 {[%emt 0:00:54]} 6. Bg2 {[%emt 0:01:21]} Bb7 {[%emt 0:00:05]} 7. O-O {[%emt 0:00:10]} O-O {[%emt 0:01:39]} 8. Ne5 {[%emt 0:08:17]} Qc8 {[%emt 0:04:22]} 9. cxd5 {[%emt 0:04:03]} Nxd5 {[%emt 0:02:36]} 10. e4 {[%emt 0:03:02]} Nxc3 {[%emt 0:01:45]} 11. bxc3 {[%emt 0:00:08]} c5 {[%emt 0:06:58]} 12. Bb2 {[%emt 0:08:34]} Nd7 {[%emt 0:04:36]} 13. Nxd7 {[%emt 0:06:42]} Qxd7 {[%emt 0:00:05]} 14. Qe2 {[%emt 0:01:06]} Qa4 {[%emt 0:05:40]} 15. Rfd1 {[%emt 0:03:19]} Rad8 {[%emt 0:04:41]} 16. d5 {[%emt 0:02:35]} exd5 {[%emt 0:02:05]} 17. exd5 {[%emt 0:00:16]} Bd6 {[%emt 0:01:36]} 18. c4 {[%emt 0:03:12]} Qd7 {[%emt 0:02:58]} 19. Qh5 {[%emt 0:08:07]} Bc8 {[%emt 0:07:35]} 20. Re1 {[%emt 0:08:45]} Qg4 {[%emt 0:03:06]} 21. Qxg4 {[%emt 0:01:22]} Bxg4 {[%emt 0:00:05]} 22. f4 {[%emt 0:01:31]} f6 {[%emt 0:02:16]} 23. Re3 {[%emt 0:01:59]} Kf7 {[%emt 0:01:38]} 24. Rf1 {[%emt 0:05:08]} Bd7 {[%emt 0:02:26]} 25. Rfe1 {[%emt 0:04:00]} Rfe8 {[%emt 0:08:47]} 26. Kf2 {[%emt 0:02:17]} Rxe3 {[%emt 0:03:36]} 27. Rxe3 {[%emt 0:00:08]} Re8 {[%emt 0:00:18]} 28. Rxe8 {[%emt 0:06:14]} Kxe8 {[%emt 0:00:07]} 29. Ke3 {[%emt 0:00:18]} Kf7 {[%emt 0:01:26]} 30. Be4 {[%emt 0:00:30]} f5 {[%emt 0:01:18]} 31. Bf3 {[%emt 0:01:00]} a6 {[%emt 0:03:40]} 32. Be5 {[%emt 0:00:38]} Bf8 {[%emt 0:03:05]} 33. h3 {[%emt 0:04:47]} Ke8 {[%emt 0:02:46]} 34. g4 {[%emt 0:02:33]} g6 {[%emt 0:03:49]} 35. Be2 {[%emt 0:05:38]} b5 {[%emt 0:03:23]} 36. g5 {[%emt 0:01:07]} Kd8 {[%emt 0:02:03]} 37. h4 {[%emt 0:02:57]} Be8 {[%emt 0:02:48]} 38. Bd3 {[%emt 0:01:42]} b4 {[%emt 0:03:55]} 39. h5 {[%emt 0:00:24]} Bd7 {[%emt 0:02:52]} 40. h6 {[%emt 0:03:09]} Kc8 {[%emt 0:03:23]} 41. Kd2 {[%emt 0:16:00]} Kb7 {[%emt 0:15:55]} 42. Kc1 {[%emt 0:00:17]} a5 {[%emt 0:00:00]} 43. Kb2 {[%emt 0:00:00]} Be7 {[%emt 0:00:00]} 44. a4 {[%emt 0:00:00]} Bf8 {[%emt 0:00:00]} 45. Kb3 {[%emt 0:00:00]} Be7 {[%emt 0:00:00]} 46. Be2 {[%emt 0:00:00]} Bf8 {[%emt 0:00:00]} 47. Bf3 {[%emt 0:00:00]} Kc8 {[%emt 0:00:00]} 48. Bg2 {[%emt 0:00:00]} Kd8 {[%emt 0:00:00]} 49. Bf6+ {[%emt 0:00:00]} Kc7 {[%emt 0:00:33]} 50. d6+ {[%emt 0:00:00]} Bxd6 {[%emt 0:01:51]} 51. Bd5 {[%emt 0:00:00]} Bxf4 {[%emt 0:00:34]} 52. Bg8 {[%emt 0:00:00]} Bd6 {[%emt 0:01:08]} 53. Bxh7 {[%emt 0:00:00]} f4 {[%emt 0:00:20]} 54. Bxg6 {[%emt 0:00:00]} f3 {[%emt 0:00:15]} 55. h7 {[%emt 0:00:00]} f2 {[%emt 0:00:25]} 56. Bd3 {[%emt 0:00:00]} Bf5 {[%emt 0:00:18]} 57. h8=Q {[%emt 0:03:20]} Bxd3 {[%emt 0:00:14]} 58. Qd8+ {[%emt 0:00:24]} Kc6 {[%emt 0:00:27]} 59. Qa8+ {[%emt 0:00:48]} Kd7 {[%emt 0:01:09]} 60. Qd8+ {[%emt 0:01:43]} Kc6 {[%emt 0:00:10]} 61. Qc8+ {[%emt 0:01:18]} Bc7 {[%emt 0:00:28]} 62. Qe6+ {[%emt 0:00:25]} Bd6 {[%emt 0:04:00]} 1-0

[Event "DSAM Bad Wildungen 2024"]
[Site "Bad Wildungen"]
[Date "2024.08.03"]
[Round "5.34"]
[White "Kellner, Rene"]
[Black "Marx, Christina"]
[Result "1-0"]
[Annotator "NA"]
[ECO "A32"]
[WhiteElo "1734"]
[BlackElo "1660"]
[PlyCount "89"]
[EventDate "2024.07.31"]
[EventCountry "GER"]
[SourceTitle "playchess.com"]
[Source "ChessBase"]
[SourceQuality "1"]
[TimeControl "40/5400+30:900+30"]

1. c4 {[%emt 0:00:04]} Nf6 {[%emt 0:00:15]} 2. Nc3 {[%emt 0:00:12]} e6 {[%emt 0:00:05]} 3. d4 {[%emt 0:02:43]} d5 {[%emt 0:00:08]} 4. Nf3 {[%emt 0:00:51]} Bb4 {[%emt 0:01:34]} 5. Bd2 {[%emt 0:01:03]} O-O {[%emt 0:00:28]} 6. e3 {[%emt 0:02:52]} c5 {[%emt 0:06:16]} 7. cxd5 {[%emt 0:02:37]} cxd4 {[%emt 0:01:47]} 8. Nxd4 {[%emt 0:01:18]} Nxd5 {[%emt 0:01:19]} 9. Nxd5 {[%emt 0:02:29]} Bxd2+ {[%emt 0:00:06]} 10. Qxd2 {[%emt 0:00:14]} Qxd5 {[%emt 0:00:06]} 11. Nb5 {[%emt 0:10:44]} Qxd2+ {[%emt 0:00:22]} 12. Kxd2 {[%emt 0:00:15]} Nd7 {[%emt 0:01:22]} 13. Be2 {[%emt 0:02:37]} Nf6 {[%emt 0:00:06]} 14. Rhd1 {[%emt 0:02:44]} Bd7 {[%emt 0:00:23]} 15. Ke1 {[%emt 0:04:08]} Bc6 {[%emt 0:00:58]} 16. Kf1 {[%emt 0:01:17]} Nd5 {[%emt 0:02:13]} 17. Rac1 {[%emt 0:03:11]} g6 {[%emt 0:12:32]} 18. Nd4 {[%emt 0:00:52]} Bd7 {[%emt 0:01:28]} 19. Bf3 {[%emt 0:01:44]} Rac8 {[%emt 0:09:04]} 20. Bxd5 {[%emt 0:02:10]} exd5 {[%emt 0:00:39]} 21. Ke1 {[%emt 0:00:39]} Rfe8 {[%emt 0:00:46]} 22. Kd2 {[%emt 0:00:15]} Rxc1 {[%emt 0:02:09]} 23. Rxc1 {[%emt 0:00:14]} Rc8 {[%emt 0:00:04]} 24. Rxc8+ {[%emt 0:00:06]} Bxc8 {[%emt 0:00:08]} 25. Kc3 {[%emt 0:00:10]} Kf8 {[%emt 0:02:06]} 26. Kb4 {[%emt 0:01:26]} Ke7 {[%emt 0:00:54]} 27. Kc5 {[%emt 0:01:08]} Be6 {[%emt 0:05:30]} 28. Nb5 {[%emt 0:01:39]} a6 {[%emt 0:08:52]} 29. Nc3 {[%emt 0:04:37]} Kd7 {[%emt 0:01:16]} 30. Nxd5 {[%emt 0:00:51]} Bxd5 {[%emt 0:00:07]} 31. Kxd5 {[%emt 0:00:06]} b6 {[%emt 0:00:05]} 32. Ke5 {[%emt 0:00:43]} Ke7 {[%emt 0:00:10]} 33. e4 {[%emt 0:00:19]} f6+ {[%emt 0:00:14]} 34. Kd5 {[%emt 0:00:34]} Kd7 {[%emt 0:00:36]} 35. f4 {[%emt 0:00:19]} h6 {[%emt 0:04:30]} 36. e5 {[%emt 0:01:55]} f5 {[%emt 0:01:37]} 37. a4 {[%emt 0:03:07]} g5 {[%emt 0:01:09]} 38. e6+ {[%emt 0:01:33]} Ke7 {[%emt 0:00:15]} 39. Ke5 {[%emt 0:05:06]} b5 {[%emt 0:01:20]} 40. axb5 {[%emt 0:00:38]} axb5 {[%emt 0:00:06]} 41. b4 {[%emt 0:15:08]} gxf4 {[%emt 0:15:31]} 42. Kxf5 {[%emt 0:00:22]} h5 {[%emt 0:00:48]} 43. h4 {[%emt 0:00:30]} f3 {[%emt 0:01:47]} 44. gxf3 {[%emt 0:00:18]} Kf8 {[%emt 0:00:28]} 45. Kf6 {[%emt 0:00:17]} 1-0

[Event "DSAM Bad Wildungen 2024"]
[Site "Bad Wildungen"]
[Date "2024.08.03"]
[Round "5.35"]
[White "Reuter, Marek"]
[Black "Doeding, Alexander"]
[Result "1-0"]
[Annotator "NA"]
[ECO "B06"]
[WhiteElo "1761"]
[BlackElo "1588"]
[PlyCount "101"]
[EventDate "2024.07.31"]
[EventCountry "GER"]
[SourceTitle "playchess.com"]
[Source "ChessBase"]
[SourceQuality "1"]
[TimeControl "40/5400+30:900+30"]

1. e4 {[%emt 0:01:07]} g6 {[%emt 0:00:22]} 2. d4 {[%emt 0:00:13]} Bg7 {[%emt 0:00:05]} 3. Nc3 {[%emt 0:00:08]} d6 {[%emt 0:00:07]} 4. Bg5 {[%emt 0:00:13]} a6 {[%emt 0:00:57]} 5. Qd2 {[%emt 0:02:15]} b5 {[%emt 0:01:07]} 6. h4 {[%emt 0:01:24]} h6 {[%emt 0:02:00]} 7. Be3 {[%emt 0:00:14]} Nf6 {[%emt 0:00:07]} 8. f3 {[%emt 0:00:58]} Nbd7 {[%emt 0:04:42]} 9. g4 {[%emt 0:07:44]} Bb7 {[%emt 0:04:22]} 10. Bh3 {[%emt 0:02:27]} Nb6 {[%emt 0:04:29]} 11. b3 {[%emt 0:00:36]} Nfd7 {[%emt 0:03:58]} 12. Nge2 {[%emt 0:04:45]} e6 {[%emt 0:09:26]} 13. Bg2 {[%emt 0:03:03]} Qe7 {[%emt 0:06:09]} 14. Ng3 {[%emt 0:01:37]} c5 {[%emt 0:05:04]} 15. Kf2 {[%emt 0:01:01]} c4 {[%emt 0:09:25]} 16. Rac1 {[%emt 0:01:14]} b4 {[%emt 0:07:31]} 17. Nce2 {[%emt 0:00:30]} c3 {[%emt 0:00:13]} 18. Qd3 {[%emt 0:00:36]} a5 {[%emt 0:01:09]} 19. a4 {[%emt 0:01:44]} Ba6 {[%emt 0:00:49]} 20. Qd1 {[%emt 0:00:03]} O-O-O {[%emt 0:05:57]} 21. Qg1 {[%emt 0:01:45]} d5 {[%emt 0:02:22]} 22. e5 {[%emt 0:04:15]} Rhf8 {[%emt 0:02:15]} 23. g5 {[%emt 0:01:39]} hxg5 {[%emt 0:01:15]} 24. hxg5 {[%emt 0:00:10]} Rh8 {[%emt 0:00:28]} 25. Bh3 {[%emt 0:01:40]} Kb7 {[%emt 0:03:20]} 26. Qg2 {[%emt 0:01:39]} Nxe5 {[%emt 0:07:31]} 27. dxe5 {[%emt 0:01:32]} Bxe5 {[%emt 0:00:10]} 28. f4 {[%emt 0:00:13]} Bg7 {[%emt 0:00:31]} 29. Bd4 {[%emt 0:00:35]} e5 {[%emt 0:00:57]} 30. fxe5 {[%emt 0:05:38]} Rhe8 {[%emt 0:03:36]} 31. Nf4 {[%emt 0:06:03]} Bxe5 {[%emt 0:01:16]} 32. Bxe5 {[%emt 0:00:19]} Qxe5 {[%emt 0:00:07]} 33. Qf3 {[%emt 0:00:08]} Qd4+ {[%emt 0:00:16]} 34. Kg2 {[%emt 0:01:14]} Re3 {[%emt 0:01:13]} 35. Rcd1 {[%emt 0:00:13]} Qe5 {[%emt 0:00:53]} 36. Qg4 {[%emt 0:01:15]} Re8 {[%emt 0:02:24]} 37. Kf2 {[%emt 0:02:07]} f5 {[%emt 0:02:46]} 38. gxf6 {[%emt 0:00:29]} g5 {[%emt 0:00:23]} 39. Nfh5 {[%emt 0:02:07]} Be2 {[%emt 0:01:30]} 40. Qd4 {[%emt 0:01:23]} Rf3+ {[%emt 0:01:34]} 41. Kg2 {[%emt 0:15:16]} Qxd4 {[%emt 0:09:35]} 42. Rxd4 {[%emt 0:00:00]} Rfe3 {[%emt 0:00:39]} 43. Bg4 {[%emt 0:00:00]} Bxg4 {[%emt 0:01:16]} 44. Rxg4 {[%emt 0:00:00]} R3e5 {[%emt 0:00:13]} 45. Rf1 {[%emt 0:00:00]} Rf8 {[%emt 0:01:05]} 46. Rf5 {[%emt 0:00:00]} Rxf5 {[%emt 0:01:00]} 47. Nxf5 {[%emt 0:00:00]} Nd7 {[%emt 0:00:24]} 48. Ne7 {[%emt 0:00:00]} Nxf6 {[%emt 0:01:32]} 49. Nxf6 {[%emt 0:00:00]} Rxf6 {[%emt 0:00:14]} 50. Nxd5 {[%emt 0:00:00]} Kc6 {[%emt 0:01:33]} 51. Nxf6 {[%emt 0:49:28]} 1-0

[Event "DSAM Bad Wildungen 2024"]
[Site "Bad Wildungen"]
[Date "2024.08.03"]
[Round "5.36"]
[White "Lehmann, Michael"]
[Black "Bauch, Martin"]
[Result "1-0"]
[Annotator "ChessBase"]
[ECO "D12"]
[WhiteElo "1731"]
[BlackElo "1927"]
[PlyCount "91"]
[EventDate "2024.07.31"]
[EventCountry "GER"]
[SourceTitle "playchess.com"]
[Source "ChessBase"]
[SourceQuality "1"]
[TimeControl "40/5400+30:900+30"]

1. d4 {[%emt 0:00:02]} d5 {[%emt 0:00:06]} 2. c4 {[%emt 0:00:05]} c6 {[%emt 0:00:04]} 3. e3 {[%emt 0:00:48]} Nf6 {[%emt 0:02:24]} 4. Nf3 {[%emt 0:00:28]} Bf5 {[%emt 0:00:25]} 5. Nc3 {[%emt 0:00:40]} e6 {[%emt 0:00:30]} 6. Be2 {[%emt 0:00:43]} Bd6 {[%emt 0:01:24]} 7. h3 {[%emt 0:01:46]} h6 {[%emt 0:02:47]} 8. Bd3 {[%emt 0:03:41]} Bxd3 {[%emt 0:01:01]} 9. Qxd3 {[%emt 0:00:09]} Nbd7 {[%emt 0:02:05]} 10. Bd2 {[%emt 0:01:43]} O-O {[%emt 0:02:30]} 11. cxd5 {[%emt 0:02:19]} exd5 {[%emt 0:03:20]} 12. O-O {[%emt 0:02:20]} Re8 {[%emt 0:00:18]} 13. Rfe1 {[%emt 0:00:46]} Ne4 {[%emt 0:00:19]} 14. a3 {[%emt 0:03:33]} a5 {[%emt 0:01:47]} 15. Re2 {[%emt 0:05:51]} f5 {[%emt 0:06:37]} 16. Be1 {[%emt 0:06:11]} Qf6 {[%emt 0:04:03]} 17. Rc1 {[%emt 0:04:13]} g5 {[%emt 0:04:47]} 18. Nd2 {[%emt 0:14:57]} Re7 {[%emt 0:17:38]} 19. Nf1 {[%emt 0:04:38]} Rf8 {[%emt 0:03:09]} 20. Nxd5 {[%emt 0:06:27]} cxd5 {[%emt 0:01:33]} 21. f3 {[%emt 0:00:16]} Rg7 {[%emt 0:00:59]} 22. Qb3 {[%emt 0:01:11]} Qe6 {[%emt 0:04:19]} 23. fxe4 {[%emt 0:01:05]} fxe4 {[%emt 0:01:16]} 24. Rf2 {[%emt 0:08:07]} Rxf2 {[%emt 0:09:40]} 25. Bxf2 {[%emt 0:02:30]} Nf6 {[%emt 0:04:36]} 26. Bg3 {[%emt 0:07:01]} h5 {[%emt 0:04:44]} 27. Qb6 {[%emt 0:03:06]} Rd7 {[%emt 0:00:17]} 28. Bxd6 {[%emt 0:04:00]} Rxd6 {[%emt 0:02:33]} 29. Qxb7 {[%emt 0:02:00]} Rd7 {[%emt 0:01:10]} 30. Qb8+ {[%emt 0:02:28]} Kg7 {[%emt 0:01:21]} 31. Rc7 {[%emt 0:01:24]} h4 {[%emt 0:00:43]} 32. Rxd7+ {[%emt 0:00:53]} Qxd7 {[%emt 0:00:08]} 33. b4 {[%emt 0:00:50]} axb4 {[%emt 0:00:16]} 34. axb4 {[%emt 0:00:04]} g4 {[%emt 0:00:10]} 35. hxg4 {[%emt 0:01:42]} Qxg4 {[%emt 0:00:12]} 36. Qf4 {[%emt 0:00:34]} Kf7 {[%emt 0:03:32]} 37. b5 {[%emt 0:00:38]} Ke7 {[%emt 0:00:37]} 38. b6 {[%emt 0:10:21]} Qxf4 {[%emt 0:00:37]} 39. exf4 {[%emt 0:00:00]} Kd7 {[%emt 0:00:14]} 40. Ne3 {[%emt 0:00:00]} Kc6 {[%emt 0:00:10]} 41. Kh2 {[%emt 0:14:43]} Kxb6 {[%emt 0:15:07]} 42. Kh3 {[%emt 0:00:00]} Kc6 {[%emt 0:00:00]} 43. Kxh4 {[%emt 0:00:00]} Kd6 {[%emt 0:00:00]} 44. g4 {[%emt 0:00:00]} Ng8 {[%emt 0:00:00]} 45. Kg5 {[%emt 0:00:00]} Ke6 {[%emt 0:00:00]} 46. f5+ {[%emt 0:00:00]} 1-0

[Event "DSAM Bad Wildungen 2024"]
[Site "Bad Wildungen"]
[Date "2024.08.03"]
[Round "5.37"]
[White "Sniegowski, Richard"]
[Black "Geier, Jakob"]
[Result "1-0"]
[Annotator "NA"]
[ECO "B10"]
[WhiteElo "1695"]
[BlackElo "1664"]
[PlyCount "37"]
[EventDate "2024.07.31"]
[EventCountry "GER"]
[SourceTitle "playchess.com"]
[Source "ChessBase"]
[SourceQuality "1"]
[TimeControl "40/5400+30:900+30"]

1. e4 {[%emt 0:00:01]} c6 {[%emt 0:00:02]} 2. Nf3 {[%emt 0:00:06]} d5 {[%emt 0:00:01]} 3. d3 {[%emt 0:00:40]} dxe4 {[%emt 0:01:48]} 4. Ng5 {[%emt 0:00:30]} exd3 {[%emt 0:01:15]} 5. Bxd3 {[%emt 0:00:05]} Nd7 {[%emt 0:01:28]} 6. Bc4 {[%emt 0:00:20]} e6 {[%emt 0:03:30]} 7. O-O {[%emt 0:00:05]} Be7 {[%emt 0:01:33]} 8. Bxe6 {[%emt 0:00:35]} fxe6 {[%emt 0:12:44]} 9. Nxe6 {[%emt 0:00:07]} Qa5 {[%emt 0:00:13]} 10. Bf4 {[%emt 0:01:16]} Bd8 {[%emt 0:15:12]} 11. Bd2 {[%emt 1:32:15]} Qb6 {[%emt 0:16:41]} 12. Re1 {[%emt 0:00:00]} Kf7 {[%emt 0:07:01]} 13. Qg4 {[%emt 0:00:00]} g6 {[%emt 0:05:58]} 14. Qc4 {[%emt 0:00:00]} Ne5 {[%emt 0:15:27]} 15. Nxd8+ {[%emt 0:02:00]} Kf6 {[%emt 0:04:47]} 16. Qf4+ {[%emt 0:00:00]} Ke7 {[%emt 0:03:11]} 17. Qxe5+ {[%emt 0:00:00]} Kxd8 {[%emt 0:00:44]} 18. Bg5+ {[%emt 0:00:00]} Kd7 {[%emt 0:00:20]} 19. Rd1+ {[%emt 0:00:00]} 1-0

[Event "DSAM Bad Wildungen 2024"]
[Site "Bad Wildungen"]
[Date "2024.08.03"]
[Round "5.40"]
[White "Zimmermann, Felix"]
[Black "Klatt, Rico"]
[Result "0-1"]
[Annotator "ChessBase"]
[ECO "B10"]
[WhiteElo "1952"]
[BlackElo "1690"]
[PlyCount "60"]
[EventDate "2024.07.31"]
[EventCountry "GER"]
[SourceTitle "playchess.com"]
[Source "ChessBase"]
[SourceQuality "1"]
[TimeControl "40/5400+30:900+30"]

1. e4 {[%emt 0:00:02]} c6 {[%emt 0:00:04]} 2. d3 {[%emt 0:00:13]} d5 {[%emt 0:00:25]} 3. Nd2 {[%emt 0:00:11]} e5 {[%emt 0:02:02]} 4. Ngf3 {[%emt 0:00:08]} Bd6 {[%emt 0:03:59]} 5. d4 {[%emt 0:00:13]} Bg4 {[%emt 0:03:57]} 6. exd5 {[%emt 0:08:22]} cxd5 {[%emt 0:09:05]} 7. dxe5 {[%emt 0:03:00]} Bxe5 {[%emt 0:03:24]} 8. h3 {[%emt 0:05:30]} Bxf3 {[%emt 0:03:05]} 9. Nxf3 {[%emt 0:00:10]} Bc7 {[%emt 0:05:14]} 10. Be2 {[%emt 0:02:16]} Ne7 {[%emt 0:03:35]} 11. c3 {[%emt 0:05:16]} O-O {[%emt 0:04:12]} 12. Qb3 {[%emt 0:03:22]} Bb6 {[%emt 0:01:46]} 13. Bf4 {[%emt 0:03:22]} Re8 {[%emt 0:08:39]} 14. Rd1 {[%emt 0:02:26]} Nbc6 {[%emt 0:03:56]} 15. O-O {[%emt 0:07:39]} Rc8 {[%emt 0:02:53]} 16. Rd2 {[%emt 0:02:33]} Na5 {[%emt 0:02:43]} 17. Qd1 {[%emt 0:03:31]} Nc4 {[%emt 0:01:10]} 18. Bxc4 {[%emt 0:02:14]} Rxc4 {[%emt 0:00:07]} 19. Be5 {[%emt 0:04:32]} Bc7 {[%emt 0:05:21]} 20. Re1 {[%emt 0:01:36]} Bxe5 {[%emt 0:00:21]} 21. Rxe5 {[%emt 0:01:32]} Qd7 {[%emt 0:05:03]} 22. Qe2 {[%emt 0:02:53]} Rcc8 {[%emt 0:03:01]} 23. Qd3 {[%emt 0:07:44]} Red8 {[%emt 0:05:00]} 24. Ng5 {[%emt 0:09:18]} g6 {[%emt 0:01:11]} 25. Ne4 {[%emt 0:04:31]} Kg7 {[%emt 0:03:31]} 26. Qd4 {[%emt 0:09:06]} Nc6 {[%emt 0:05:37]} 27. Qxd5 {[%emt 0:05:15]} Qc7 {[%emt 0:01:10]} 28. Nd6 {[%emt 0:07:35]} Rxd6 {[%emt 0:02:44]} 29. Qxd6 {[%emt 0:00:00]} Qxd6 {[%emt 0:00:05]} 30. Rxd6 {[%emt 0:00:00]} Nxe5 {[%emt 0:00:03]} 0-1

[Event "DSAM Bad Wildungen 2024"]
[Site "Bad Wildungen"]
[Date "2024.08.03"]
[Round "5.41"]
[White "Hefner, Simon"]
[Black "Engelhaupt, Henry"]
[Result "1/2-1/2"]
[Annotator "NA"]
[ECO "C44"]
[WhiteElo "1678"]
[BlackElo "1788"]
[PlyCount "39"]
[EventDate "2024.07.31"]
[EventCountry "GER"]
[SourceTitle "playchess.com"]
[Source "ChessBase"]
[SourceQuality "1"]
[TimeControl "40/5400+30:900+30"]

1. e4 {[%emt 0:00:07]} e5 {[%emt 0:00:06]} 2. Nf3 {[%emt 0:00:08]} Nc6 {[%emt 0:00:03]} 3. d4 {[%emt 0:00:17]} exd4 {[%emt 0:00:05]} 4. Bc4 {[%emt 0:00:25]} Bb4+ {[%emt 0:00:56]} 5. c3 {[%emt 0:00:22]} dxc3 {[%emt 0:04:04]} 6. bxc3 {[%emt 0:00:08]} Ba5 {[%emt 0:00:03]} 7. O-O {[%emt 0:00:12]} Nge7 {[%emt 0:01:07]} 8. Bg5 {[%emt 0:03:34]} O-O {[%emt 0:00:34]} 9. e5 {[%emt 0:02:39]} Qe8 {[%emt 0:01:41]} 10. Qc1 {[%emt 0:11:01]} Ng6 {[%emt 0:01:51]} 11. Re1 {[%emt 0:00:44]} Bb6 {[%emt 0:01:55]} 12. Nbd2 {[%emt 0:03:33]} h6 {[%emt 0:01:16]} 13. Bxh6 {[%emt 0:16:43]} gxh6 {[%emt 0:00:21]} 14. Ne4 {[%emt 0:00:25]} Kg7 {[%emt 0:00:06]} 15. Nf6 {[%emt 0:02:01]} Qd8 {[%emt 0:00:58]} 16. Nh5+ {[%emt 0:02:23]} Kh7 {[%emt 0:02:07]} 17. Nf6+ {[%emt 0:03:41]} Kg7 {[%emt 0:02:19]} 18. Nh5+ {[%emt 0:32:36]} Kh7 {[%emt 0:00:09]} 19. Nf6+ {[%emt 0:03:54]} Kg7 {[%emt 0:00:06]} 20. Nh5+ {[%emt 0:15:37]} 1/2-1/2